Department family,Entity,Date,Expense Type,Expense area,Supplier,Transation number,Amount,Narrative
Department for Culture Media and Sport,Department for Culture Media and Sport,02/01/2015,Grant-in-Aid (DCMS NDPBs),GIA Sports bodies,Sport Ground Safety Authority,0050001494,"101,083.00",SGSA GIA JANUARY 2015
Department for Culture Media and Sport,Department for Culture Media and Sport,02/01/2015,Current Grants Private Sector,GIA Architecture+Heritage,Greenwich Foundation for the RN College,0050001495,"102,083.00",ORNC GIA JANUARY 2015
Department for Culture Media and Sport,Department for Culture Media and Sport,02/01/2015,Grant to OGD (Resource),Architecture + heritage progs,The Treasurer to the Queen,0050001500,"36,927.00",MH GIA Jan 2015
Department for Culture Media and Sport,Department for Culture Media and Sport,02/01/2015,Grant-in-Aid (DCMS NDPBs),GIA Museums & Galleries,Geffrye Museum,0050001502,"125,957.00",GM GIA JAN 15
Department for Culture Media and Sport,Department for Culture Media and Sport,02/01/2015,Grant-in-Aid (DCMS NDPBs),GIA Libraries bodies,British Library,0050001505,"7,282,166.00",BL_GIA_JAN_15
Department for Culture Media and Sport,Department for Culture Media and Sport,02/01/2015,Grant-in-Aid (DCMS NDPBs),GIA Museums & Galleries,Horniman Museum,0050001506,"353,000.00",HM_GIA_JAN_15
Department for Culture Media and Sport,Department for Culture Media and Sport,02/01/2015,Grant-in-Aid (DCMS NDPBs),GIA Museums & Galleries,British Museum,0050001508,"5,129,257.00",BM GIA JAN 15
Department for Culture Media and Sport,Department for Culture Media and Sport,02/01/2015,Grant-in-Aid (DCMS NDPBs),GIA Museums & Galleries,Imperial War Museum,0050001509,"1,220,586.00",IWM GIA JAN 15
Department for Culture Media and Sport,Department for Culture Media and Sport,02/01/2015,Grant-in-Aid (DCMS NDPBs),GIA Museums & Galleries,National Museums & Galleries Merseyside,0050001510,"1,840,484.00",NML GIA JAN 15
Department for Culture Media and Sport,Department for Culture Media and Sport,02/01/2015,Grant-in-Aid (DCMS NDPBs),GIA Museums & Galleries,National Portrait Gallery,0050001511,"573,667.00",NPG GIA JAN 15
Department for Culture Media and Sport,Department for Culture Media and Sport,02/01/2015,Grant-in-Aid (DCMS NDPBs),GIA Museums & Galleries,Science Museum Group (ex-NMSI),0050001512,"3,850,000.00",SMG GIA JAN 15
Department for Culture Media and Sport,Department for Culture Media and Sport,02/01/2015,Grant-in-Aid (DCMS NDPBs),GIA Museums & Galleries,Natural History Museum,0050001513,"3,615,000.00",NHM GIA JAN 15
Department for Culture Media and Sport,Department for Culture Media and Sport,02/01/2015,Grant-in-Aid (DCMS NDPBs),GIA Museums & Galleries,The Royal Armouries,0050001514,"684,000.00",RA GIA JAN 15
Department for Culture Media and Sport,Department for Culture Media and Sport,02/01/2015,Grant-in-Aid (DCMS NDPBs),GIA S4C Welsh Fourth Channel,S4C-Sianel Pedwar Cymru-all inv inc. GIA,0050001517,"1,500,000.00",S4C GIA Jan 15
Department for Culture Media and Sport,Department for Culture Media and Sport,02/01/2015,Grant-in-Aid (DCMS NDPBs),GIA Tourism bodies,VisitBritain,0050001518,"2,900,000.00",VB GIA Jan 15
Department for Culture Media and Sport,Department for Culture Media and Sport,02/01/2015,Grant-in-Aid (DCMS NDPBs),GIA Sports bodies,Sport England,0050001521,"8,000,000.00",Sport England GIA Jan 15
Department for Culture Media and Sport,Department for Culture Media and Sport,02/01/2015,Grant-in-Aid (DCMS NDPBs),GIA Sports bodies,United Kingdom Anti Doping Ltd,0050001522,"404,667.00",UKAD GIA Jan 2015
Department for Culture Media and Sport,Department for Culture Media and Sport,02/01/2015,Grant-in-Aid (DCMS NDPBs),OFCOM,OFCOM,0050001528,"121,193.00",Jan Orphan Costs
Department for Culture Media and Sport,Department for Culture Media and Sport,02/01/2015,Grant-in-Aid (DCMS NDPBs),OFCOM,OFCOM,0050001529,"58,169.00",Ofcom PSSR
Department for Culture Media and Sport,Department for Culture Media and Sport,02/01/2015,Grant-in-Aid (DCMS NDPBs),OFCOM,OFCOM,0050001530,"1,057,235.00",Ofcom SCAP
Department for Culture Media and Sport,Department for Culture Media and Sport,02/01/2015,Grant-in-Aid (DCMS NDPBs),OFCOM,OFCOM,0050001531,"4,100,679.00",OFCOM Spectrum Management
Department for Culture Media and Sport,Department for Culture Media and Sport,02/01/2015,Grant-in-Aid (DCMS NDPBs),GIA Museums & Galleries,Victoria & Albert Museum,0050001533,"1,589,250.00",V&A GIA Jan 2015
Department for Culture Media and Sport,Department for Culture Media and Sport,02/01/2015,Grant-in-Aid (DCMS NDPBs),GIA Museums & Galleries,Sir John Soane's Museum,0050001535,"81,000.00",SJSM GIA Jan 2015
Department for Culture Media and Sport,Department for Culture Media and Sport,02/01/2015,Grant-in-Aid (DCMS NDPBs),GIA Museums & Galleries,Wallace Collection,0050001536,"238,500.00",TWC GIA Jan 2015
Department for Culture Media and Sport,Department for Culture Media and Sport,02/01/2015,Grant-in-Aid (DCMS NDPBs),GIA Architecture+Heritage,Churches Conservation Trust,0050001537,"270,000.00",CCT GIA Jan 2015
Department for Culture Media and Sport,Department for Culture Media and Sport,05/01/2015,Tribunal Administration Fees,Sports - Programme Costs,Sport Resolutions (UK),0030037793,"71,970.00",NADP Service Contract
Department for Culture Media and Sport,Department for Culture Media and Sport,05/01/2015,Finance & Accounting Services,Finance,Liberata UK Ltd,0030038164,"25,560.87",Finance & Accounting Services - Dec14
Department for Culture Media and Sport,Department for Culture Media and Sport,05/01/2015,VAT-Recoverable Contracted-Out,Misc Balance Sheet,Liberata UK Ltd,0030038164,"5,112.16",Finance & Accounting Services - Dec14
Department for Culture Media and Sport,Department for Culture Media and Sport,05/01/2015,Grant-in-Aid (DCMS NDPBs),GIA Arts bodies,Arts Council of England,0050001515,"41,900,000.00",ACE GIA Jan 15
Department for Culture Media and Sport,Department for Culture Media and Sport,06/01/2015,Equalities Helpline Service,GEO Equality Support Helpline,Sitel (UK) Ltd,0030038141,"146,668.74",Billing Period: NOVEMBER 2014
Department for Culture Media and Sport,Department for Culture Media and Sport,06/01/2015,VAT-Recoverable Contracted-Out,Misc Balance Sheet,Sitel (UK) Ltd,0030038141,"29,333.73",Billing Period: NOVEMBER 2014
Department for Culture Media and Sport,Department for Culture Media and Sport,06/01/2015,Current Grants Private Sector,LPW and Ecclesiastical,Topmark Claims Management Ltd,0030038199,"350,000.00",Funding For LPW 181214_291214
Department for Culture Media and Sport,Department for Culture Media and Sport,06/01/2015,Grant-in-Aid (DCMS NDPBs),GIA Museums & Galleries,National Maritime Museum,0050001503,"1,515,924.00",RMG GIA JAN 15
Department for Culture Media and Sport,Department for Culture Media and Sport,06/01/2015,Grant-in-Aid (DCMS NDPBs),GIA Museums & Galleries,Tate Gallery,0050001504,"2,679,083.00",TATE GIA JAN15
Department for Culture Media and Sport,Department for Culture Media and Sport,06/01/2015,Grant-in-Aid (DCMS NDPBs),GIA Architecture+Heritage,English Heritage,0050001507,"7,500,000.00",EH GIA JAN 15
Department for Culture Media and Sport,Department for Culture Media and Sport,06/01/2015,Grant-in-Aid (DCMS NDPBs),GIA Gambling + Lottery bodies,National Lottery Commission,0050001516,"191,651.00",NLC GIA Jan 15
Department for Culture Media and Sport,Department for Culture Media and Sport,06/01/2015,Grant-in-Aid (DCMS NDPBs),The Royal Parks - funding,The Royal Parks,0050001519,"1,000,000.00",TRP GIA Jan 15
Department for Culture Media and Sport,Department for Culture Media and Sport,06/01/2015,Grant-in-Aid (DCMS NDPBs),GIA Sports bodies,United Kingdom Sports Council,0050001520,"4,175,336.00",UK Sport GIA Jan 2015
Department for Culture Media and Sport,Department for Culture Media and Sport,06/01/2015,Grant-in-Aid (DCMS NDPBs),GIA to Equalities Bodies,GIA - EHRC,0050001538,"1,144,123.00",EHRC GIA Jan 2015
Department for Culture Media and Sport,Department for Culture Media and Sport,06/01/2015,Grant-in-Aid (DCMS NDPBs),GIA to Equalities Bodies,GIA - EHRC,0050001539,"134,232.00",EHRC GIA Approved Prog Bids Jan 15
Department for Culture Media and Sport,Department for Culture Media and Sport,07/01/2015,T&S UK (Officials only),Procurement,Redfern Travel Limited,0030038197,"33,688.48",Billing for Dec-2014
Department for Culture Media and Sport,Department for Culture Media and Sport,07/01/2015,Grant to BBC:Home Broadcasting,Home Broadcasting:Grant to BBC,British Broadcasting Corporation,0050001524,"35,420,833.00",BBC GIA Jan 2015 Part 2
Department for Culture Media and Sport,Department for Culture Media and Sport,08/01/2015,Grant-in-Aid (DCMS NDPBs),GIA Museums & Galleries,National Gallery,0050001534,"1,264,306.00",NG GIA Jan 2015
Department for Culture Media and Sport,Department for Culture Media and Sport,09/01/2015,Capital Grants to LAs,Broadband UK Capital+Programme,North Lincolnshire Council (Rural),0030038214,"502,466.00",BDUK Superfast Britain milestone grant claim payment
Department for Culture Media and Sport,Department for Culture Media and Sport,09/01/2015,Office Accommodation Rent,Estates & Property Services,Lazari Investments Ltd,0030038237,"215,550.00",TRC Rent 25.12.14 - 24.03.15
Department for Culture Media and Sport,Department for Culture Media and Sport,09/01/2015,Current Grants Private Sector,LPW and Ecclesiastical,Topmark Claims Management Ltd,0030038248,"450,000.00",Funding for LPW 301214_080115
Department for Culture Media and Sport,Department for Culture Media and Sport,12/01/2015,Accruals from closedown of Olympic Delivery Authority,ODA Residuary Functions,Lend Lease Europe Ltd,0030038249,"4,338,603.36",Olympic Village retrofit etc.- payments on account
Department for Culture Media and Sport,Department for Culture Media and Sport,13/01/2015,Grant to BBC:Home Broadcasting,Home Broadcasting:Grant to BBC,British Broadcasting Corporation,0050001525,"141,683,333.00",BBC GIA Jan 2015 Part3
Department for Culture Media and Sport,Department for Culture Media and Sport,13/01/2015,Grant-in-Aid (DCMS NDPBs),GIA Arts bodies,Arts Council of England,0050001540,"7,000,000.00",ACE GIA SECOND INSTALLMENT JANUARY 2015
Department for Culture Media and Sport,Department for Culture Media and Sport,14/01/2015,DCMS-Wolfson Museums & Gallery Improvement Fund,Misc Balance Sheet,Birmingham Museums & Art Gallery,0030038285,"35,442.60",BMT GRANT ROUND 2 DECEMBER 2014
Department for Culture Media and Sport,Department for Culture Media and Sport,14/01/2015,DCMS-Wolfson Museums & Gallery Improvement Fund,Misc Balance Sheet,Compton Verney,0030038286,"29,632.91",CV GRANT ROUND 2 JANUARY 2015
Department for Culture Media and Sport,Department for Culture Media and Sport,14/01/2015,DCMS-Wolfson Museums & Gallery Improvement Fund,Misc Balance Sheet,University of Oxford,0030038287,"31,340.75",PRM GRANT ROUND 2 JANUARY 2015
Department for Culture Media and Sport,Department for Culture Media and Sport,14/01/2015,DCMS-Wolfson Museums & Gallery Improvement Fund,Misc Balance Sheet,National Motor Museum Trust,0030038288,"27,345.00",NMMT GRANT ROUND 2 DECEMBER 2014
Department for Culture Media and Sport,Department for Culture Media and Sport,14/01/2015,DCMS-Wolfson Museums & Gallery Improvement Fund,Misc Balance Sheet,London Transport Museum,0030038289,"38,314.50",LTM GRANT ROUND 2 FEBRUARY 2014
Department for Culture Media and Sport,Department for Culture Media and Sport,15/01/2015,DCMS-Wolfson Museums & Gallery Improvement Fund,Misc Balance Sheet,Victoria & Albert Museum,0030038290,"30,000.00",V&A GRANT ROUND 2 DECEMBER 2014
Department for Culture Media and Sport,Department for Culture Media and Sport,15/01/2015,DCMS-Wolfson Museums & Gallery Improvement Fund,Misc Balance Sheet,Beamish Museum Ltd,0030038291,"25,254.00",BML GRANT ROUND 2 DECEMBER 2014
Department for Culture Media and Sport,Department for Culture Media and Sport,15/01/2015,DCMS-Wolfson Museums & Gallery Improvement Fund,Misc Balance Sheet,Chatham Historic Dockyard Trust,0030038292,"88,950.13",CHDT GRANT ROUND 2 DECEMBER 2014
Department for Culture Media and Sport,Department for Culture Media and Sport,15/01/2015,DCMS-Wolfson Museums & Gallery Improvement Fund,Misc Balance Sheet,Derby Museums,0030038293,"37,370.13",DM GRANT ROUND 2 DECEMBER 2014
Department for Culture Media and Sport,Department for Culture Media and Sport,15/01/2015,Capital Grants to LAs,Broadband UK Capital+Programme,North Lincolnshire Council (Rural),0030038298,"509,076.00",BDUK Superfast Britain milestone grant claim payment
Department for Culture Media and Sport,Department for Culture Media and Sport,16/01/2015,Publicity,BDUK Marketing in Admin Costs,M4C,0030038265,"22,235.57",CVS M4C Radio Time - Nov'14
Department for Culture Media and Sport,Department for Culture Media and Sport,16/01/2015,VAT-Recoverable Contracted-Out,Misc Balance Sheet,M4C,0030038265,"4,442.69",CVS M4C Radio Time - Nov'14
Department for Culture Media and Sport,Department for Culture Media and Sport,16/01/2015,Publicity,BDUK Marketing in Admin Costs,M4C,0030038266,"246,323.78",M4C CVS Radio Time Dec'14
Department for Culture Media and Sport,Department for Culture Media and Sport,16/01/2015,VAT-Recoverable Contracted-Out,Misc Balance Sheet,M4C,0030038266,"49,215.55",M4C CVS Radio Time Dec'14
Department for Culture Media and Sport,Department for Culture Media and Sport,16/01/2015,Temp staff Interim managers,Broadband Delivery UK (Admin),Capita Resourcing Ltd,0030038275,"32,706.24",Commercial team member - November and December 2014
Department for Culture Media and Sport,Department for Culture Media and Sport,16/01/2015,IT Support,Broadband Delivery UK (Admin),Cora Systems Ltd,0030038284,"73,957.00",Phase 2 Content
Department for Culture Media and Sport,Department for Culture Media and Sport,16/01/2015,Capital Grant Private Sector,Broadband UK Capital+Programme,Arqiva Ltd,0030038320,"138,523.00",Mobile Infrastructure Project Grant Claim: December 2014
Department for Culture Media and Sport,Department for Culture Media and Sport,16/01/2015,DCMS-Wolfson Museums & Gallery Improvement Fund,Misc Balance Sheet,The Natural History Museum,0030038354,"26,718.16",NHM GRANT JAN15
Department for Culture Media and Sport,Department for Culture Media and Sport,19/01/2015,Current Grants Private Sector,LPW and Ecclesiastical,Topmark Claims Management Ltd,0030038371,"1,185,000.00",Funding for LPW 090115_150115
Department for Culture Media and Sport,Department for Culture Media and Sport,19/01/2015,Current Grants Private Sector,Other Heritage Programme Costs,Topmark Claims Management Ltd,0030038372,"147,000.00",Memorial Grant Scheme October-December 2014
Department for Culture Media and Sport,Department for Culture Media and Sport,19/01/2015,Grant to BBC:Home Broadcasting,Home Broadcasting:Grant to BBC,British Broadcasting Corporation,0050001526,"35,420,833.00",BBC GIA Jan 2015 Part 4
Department for Culture Media and Sport,Department for Culture Media and Sport,20/01/2015,Basic Pay (Secondees),Broadband Delivery UK (Admin),HM Treasury,0030038325,"37,764.93",Secondment costs October- December 2014
Department for Culture Media and Sport,Department for Culture Media and Sport,20/01/2015,Current Grants Private Sector,LPW and Ecclesiastical,The Archbishops Council,0030038329,"107,766.50",SOUTHWARK CATHEDRAL GRANT JAN15
Department for Culture Media and Sport,Department for Culture Media and Sport,20/01/2015,Current Grants Private Sector,LPW and Ecclesiastical,The Archbishops Council,0030038330,"27,406.84",COVENTRY CATHEDRAL GRANT JAN15
Department for Culture Media and Sport,Department for Culture Media and Sport,20/01/2015,Current Grants Private Sector,LPW and Ecclesiastical,The Archbishops Council,0030038333,"142,753.00",SALISBURY CATHEDRAL GRANT JAN15
Department for Culture Media and Sport,Department for Culture Media and Sport,20/01/2015,Publicity,BDUK Marketing in Admin Costs,M4C,0030038362,"178,630.84",SEARCH/DECEMBER 14
Department for Culture Media and Sport,Department for Culture Media and Sport,20/01/2015,Publicity,BDUK Marketing in Admin Costs,M4C,0030038363,"353,987.99",DISPLAY DECEMBER 14
Department for Culture Media and Sport,Department for Culture Media and Sport,20/01/2015,Current Grants Private Sector,LPW and Ecclesiastical,The Archbishops Council,0030038368,"50,000.00",TRURO GRANT JANUARY 2015 CCB39/001
Department for Culture Media and Sport,Department for Culture Media and Sport,20/01/2015,Current Grants Private Sector,GEO Other Ongoing Programmes,SFEDI (meet a mentor),0030038376,"27,517.82",MEET A MENTOR EVENTS
Department for Culture Media and Sport,Department for Culture Media and Sport,20/01/2015,Temp staff Interim managers,ODA Residuary Functions,Belgrave Eccleston Ltd (ODA),0030038388,"42,510.00",ODA_103-Consultancy Services 01-31.12.14
Department for Culture Media and Sport,Department for Culture Media and Sport,20/01/2015,Grant-in-Aid (DCMS NDPBs),GIA Arts bodies,Arts Council of England,0050001548,"3,000,000.00",ACE GIA Jan 15 Part 3
Department for Culture Media and Sport,Department for Culture Media and Sport,21/01/2015,Management Consultants,Broadband Delivery UK (Admin),KPMG LLP,0030038392,"53,924.15",BDUK Superfast Programme
Department for Culture Media and Sport,Department for Culture Media and Sport,21/01/2015,VAT-Recoverable Contracted-Out,Misc Balance Sheet,KPMG LLP,0030038392,"10,784.83",BDUK Superfast Programme
Department for Culture Media and Sport,Department for Culture Media and Sport,21/01/2015,Management Consultants,Broadband Delivery UK (Admin),KPMG LLP,0030038393,"89,913.02",BDUK Superfast Programme
Department for Culture Media and Sport,Department for Culture Media and Sport,21/01/2015,VAT-Recoverable Contracted-Out,Misc Balance Sheet,KPMG LLP,0030038393,"17,982.60",BDUK Superfast Programme
Department for Culture Media and Sport,Department for Culture Media and Sport,21/01/2015,Management Consultants,Broadband Delivery UK (Admin),KPMG LLP,0030038394,"108,224.77",BDUK superfast Programme
Department for Culture Media and Sport,Department for Culture Media and Sport,21/01/2015,VAT-Recoverable Contracted-Out,Misc Balance Sheet,KPMG LLP,0030038394,"21,644.95",BDUK superfast Programme
Department for Culture Media and Sport,Department for Culture Media and Sport,22/01/2015,TSOL Advice Billed Hours,Legal Advisers to DCMS (TSOL),Government Legal Department,0030038412,"533,958.00",Prof. Chgs Advisory Grp Q4
Department for Culture Media and Sport,Department for Culture Media and Sport,22/01/2015,VAT-Recoverable Contracted-Out,Misc Balance Sheet,Government Legal Department,0030038412,"106,791.60",Prof. Chgs Advisory Grp Q4
Department for Culture Media and Sport,Department for Culture Media and Sport,22/01/2015,IT Support,Information Services,WTG Technologies,0030038422,"54,586.13",Services for 01 to 31 October 2014
Department for Culture Media and Sport,Department for Culture Media and Sport,22/01/2015,VAT-Recoverable Contracted-Out,Misc Balance Sheet,WTG Technologies,0030038422,"10,917.23",Services for 01 to 31 October 2014
Department for Culture Media and Sport,Department for Culture Media and Sport,22/01/2015,IT Support,Information Services,WTG Technologies,0030038427,"51,098.77",Services for 01 to 30 November 2014
Department for Culture Media and Sport,Department for Culture Media and Sport,22/01/2015,VAT-Recoverable Contracted-Out,Misc Balance Sheet,WTG Technologies,0030038427,"10,219.75",Services for 01 to 30 November 2014
Department for Culture Media and Sport,Department for Culture Media and Sport,23/01/2015,Current Grants Private Sector,GEO Other Ongoing Programmes,Childnet International,0030038421,"138,800.00",Phase 1 - 1st year funding 2014/15
Department for Culture Media and Sport,Department for Culture Media and Sport,23/01/2015,TSOL Disbursement Costs,Legal Advisers to DCMS (TSOL),Government Legal Department,0030038443,"30,326.42",Prof. charges to 31/12/14
Department for Culture Media and Sport,Department for Culture Media and Sport,23/01/2015,Current Grants Private Sector,LPW and Ecclesiastical,Topmark Claims Management Ltd,0030038446,"908,000.00",Funding for LPW 160115_220115
Department for Culture Media and Sport,Department for Culture Media and Sport,23/01/2015,Grant to BBC:Home Broadcasting,Home Broadcasting:Grant to BBC,British Broadcasting Corporation,0050001527,"35,420,833.00",BBC GIA Jan 2015 Part 5
Department for Culture Media and Sport,Department for Culture Media and Sport,23/01/2015,Capital Grant Private Sector,Grant support to NFTS,National Film & Television School,0050001550,"225,500.00",NFTS GIA Jan 15
Department for Culture Media and Sport,Department for Culture Media and Sport,26/01/2015,Equalities Helpline Service,GEO Equality Support Helpline,Sitel (UK) Ltd,0030038395,"179,847.75",Ongoing Management charges
Department for Culture Media and Sport,Department for Culture Media and Sport,27/01/2015,Current Grants to LAs,World War I Centenary Prog,GLASGOW CITY COUNCIL,0030038405,"55,486.22",4th August 2014 WW1 costs
Department for Culture Media and Sport,Department for Culture Media and Sport,27/01/2015,VAT-Recoverable Contracted-Out,Misc Balance Sheet,SCOTTISH POLICE AUTHORITY,0030038442,"22,451.84",WW1 costs rechrg- Wendy Shales
Department for Culture Media and Sport,Department for Culture Media and Sport,27/01/2015,Current Grants to LAs,World War I Centenary Prog,SCOTTISH POLICE AUTHORITY,0030038442,"112,259.18",WW1 costs rechrg- Wendy Shales
Department for Culture Media and Sport,Department for Culture Media and Sport,28/01/2015,International Subscriptions,International programme spend,European Audiovisual Observatory,0030038402,"67,480.10",2015 Contribution Part 1
Department for Culture Media and Sport,Department for Culture Media and Sport,29/01/2015,Capital Grants to LAs,Broadband UK Capital+Programme,Cambridgeshire CC (Rural),0030038485,"1,738,208.00",BDUK Superfast Britain milestone grant claim payment
Department for Culture Media and Sport,Department for Culture Media and Sport,29/01/2015,Grant to OGD (Resource),OFCOM,OFCOM,0030038488,"252,660.00",Ofcom_Community Radio_14/15 Drawdown2
Department for Culture Media and Sport,Department for Culture Media and Sport,30/01/2015,Other Capital Grants,Spectrum Clearance Programme,CFOA National Resilience Ltd,0030038464,"688,922.47",CNR LTD DECEMBER 2014
Department for Culture Media and Sport,Department for Culture Media and Sport,30/01/2015,Other Programme Procurement,GEO Other Ongoing Programmes,British Chambers of Commerce,0030038467,"24,900.00",DELIVERY PHASE 3 CONTRACT NO 100513
Department for Culture Media and Sport,Department for Culture Media and Sport,30/01/2015,VAT-Recoverable Contracted-Out,Misc Balance Sheet,British Chambers of Commerce,0030038467,"4,980.00",DELIVERY PHASE 3 CONTRACT NO 100513
Department for Culture Media and Sport,Department for Culture Media and Sport,30/01/2015,Oth Professional Services Prog,Spectrum Clearance Programme,Andrew Dumbreck Media Limited,0030038484,"25,500.00",Contract for Tech. exp. oversight brd
Department for Culture Media and Sport,Department for Culture Media and Sport,30/01/2015,Research,EAU Taking Part Survey,TNS UK LTD,0030038523,"134,935.20",Y10 INVOICE 9 COMPLETION DEC 14 FIELDWOR
Department for Culture Media and Sport,Department for Culture Media and Sport,30/01/2015,Current Grants Private Sector,LPW and Ecclesiastical,Topmark Claims Management Ltd,0030038541,"450,000.00",Funding for LPW 230115_290115
